fUST/lending_fUST_20251117
["ID","MTS","AMOUNT","RATE_DAILY","PERIOD"]
[394210201,1763381440061,-500.0,0.00015673,2]
[394210202,1763381440071,-500.0,0.00015673,2]
[394210203,1763381440080,-500.0,0.00015673,2]
[394210204,1763381440089,-500.0,0.00015673,2]
[394210205,1763381440099,-249.43248286,0.00015673,2]
[394210206,1763381440108,-500.0,0.00015673,2]
[394210207,1763381440117,-500.0,0.00015673,2]
[394210208,1763381440126,-500.0,0.00015673,2]
[394210209,1763381440136,-500.0,0.00015673,2]
[394210210,1763381440146,-684.9700106,0.00015694,2]
[394210211,1763381440155,-49305.5856675,0.00015694,2]
[394210212,1763381440165,-1680.0,0.00015699,2]
[394210213,1763381440174,-2000.0,0.00015916,2]
[394210214,1763381440183,-1000.0,0.00015921,2]
[394210215,1763381440192,-500.0,0.00015921,2]
[394210216,1763381440201,-500.81735696,0.00015921,2]
[394210217,1763381440211,-9684.85200953,0.00015921,2]
[394210218,1763381440219,-500.0,0.00015922,2]
[394210219,1763381440229,-233.3619784,0.00015923,2]
[394210220,1763381440238,-2000.0,0.00016016,2]
[394210221,1763381440247,-720.0,0.00016134,2]
[394210222,1763381440256,-473.75844563,0.00016164,2]
[394210223,1763381440266,-500.0,0.00016196,2]
[394210224,1763381440276,-274.0948081,0.00016221,2]
[394210225,1763381440284,-1001.47190717,0.00016221,2]
[394210226,1763381440293,-516.64132678,0.00016221,2]
[394210227,1763381440302,-1000.0,0.00016221,2]
[394210228,1763381440311,-1000.83212326,0.00016221,2]
[394210229,1763381440321,-1000.0,0.00016221,2]
[394210230,1763381440330,-509.45721812,0.00016221,2]
[394210231,1763381440339,-357.78598318,0.00016221,2]
[394210232,1763381440349,-1001.19443095,0.00016221,2]
[394210233,1763381440358,-1000.0,0.00016221,2]
[394210234,1763381440367,-1000.0,0.00016221,2]
[394210235,1763381440377,-1135.24857012,0.00016315,2]
[394210236,1763381440387,-621.53754717,0.00016438,2]
[394210237,1763381440396,-621.53754717,0.00016438,2]
[394210238,1763381440407,-621.53754717,0.00016438,2]
[394210239,1763381440418,-621.53754717,0.00016438,2]
[394210240,1763381440428,-621.53754717,0.00016438,2]
[394210241,1763381440437,-621.53754717,0.00016438,2]
[394210242,1763381440446,-621.53754717,0.00016438,2]
[394210243,1763381440457,-621.53754717,0.00016438,2]
[394210244,1763381440466,-621.53754717,0.00016438,2]
[394210245,1763381440476,-621.53754717,0.00016438,2]
[394210246,1763381440488,-621.53754717,0.00016438,2]
[394210247,1763381440497,-621.53754717,0.00016438,2]
[394210248,1763381440507,-621.53754717,0.00016438,2]
[394210249,1763381440517,-621.53754717,0.00016438,2]
[394210250,1763381440526,-621.53754717,0.00016438,2]
[394210251,1763381440535,-621.53754717,0.00016438,2]
[394210252,1763381440545,-621.53754717,0.00016438,2]
[394210253,1763381440556,-621.53754717,0.00016438,2]
[394210254,1763381440565,-621.53754717,0.00016438,2]
[394210255,1763381440580,-621.53754717,0.00016438,2]
[394210256,1763381440589,-621.53754717,0.00016438,2]
[394210257,1763381440598,-621.53754717,0.00016438,2]
[394210258,1763381440607,-500.0,0.00016438,2]
[394210259,1763381440617,-500.0,0.00016438,2]
[394210260,1763381440626,-1392.40577823,0.00016438,2]
[394210261,1763381440634,-500.0,0.00016438,2]
[394210262,1763381440644,-500.0,0.00016438,2]
[394210263,1763381440654,-1392.40577823,0.00016438,2]
[394210264,1763381440663,-588.0371519,0.00016438,2]
[394210265,1763381440672,-500.0,0.00016438,2]
[394210266,1763381440681,-1392.40577823,0.00016438,2]
[394210267,1763381440690,-500.0,0.00016438,2]
[394210268,1763381440699,-1392.40577823,0.00016438,2]
[394210269,1763381440708,-500.0,0.00016438,2]
[394210270,1763381440717,-500.0,0.00016438,2]
[394210271,1763381440726,-1392.40577823,0.00016438,2]
[394210272,1763381440735,-1392.40577823,0.00016438,2]
[394210273,1763381440744,-500.0,0.00016438,2]
[394210274,1763381440754,-1392.40577823,0.00016438,2]
[394210275,1763381440763,-500.0,0.00016438,2]
[394210276,1763381440774,-1392.40577823,0.00016438,2]
[394210277,1763381440783,-500.0,0.00016438,2]
[394210278,1763381440792,-500.0,0.00016438,2]
[394210279,1763381440804,-1392.40577823,0.00016438,2]
[394210280,1763381440814,-500.0,0.00016438,2]
[394210281,1763381440823,-1392.40577823,0.00016438,2]
[394210282,1763381440832,-500.0,0.00016438,2]
[394210283,1763381440841,-1392.40577823,0.00016438,2]
[394210284,1763381440850,-500.0,0.00016438,2]
[394210285,1763381440859,-500.0,0.00016438,2]
[394210286,1763381440868,-1392.40577823,0.00016438,2]
[394210287,1763381440878,-500.0,0.00016438,2]
[394210288,1763381440888,-1392.40577823,0.00016438,2]
[394210289,1763381440898,-500.0,0.00016438,2]
[394210290,1763381440907,-1392.40577823,0.00016438,2]
[394210291,1763381440917,-500.0,0.00016438,2]
[394210292,1763381440927,-1392.40577823,0.00016438,2]
[394210293,1763381440937,-500.0,0.00016438,2]
[394210294,1763381440947,-500.0,0.00016438,2]
[394210295,1763381440957,-1392.40577823,0.00016438,2]
[394210296,1763381440966,-500.0,0.00016438,2]
[394210297,1763381440976,-1392.40577823,0.00016438,2]
[394210298,1763381440985,-500.0,0.00016438,2]
[394210299,1763381440995,-1392.40577823,0.00016438,2]
[394210300,1763381441005,-1392.40577823,0.00016438,2]
[394210301,1763381441015,-500.0,0.00016438,2]
[394210302,1763381441024,-1392.40577823,0.00016438,2]
[394210303,1763381441034,-500.0,0.00016438,2]
[394210304,1763381441043,-500.0,0.00016438,2]
[394210305,1763381441053,-1392.40577823,0.00016438,2]
[394210306,1763381441063,-1392.40577823,0.00016438,2]
[394210307,1763381441073,-500.0,0.00016438,2]
[394210308,1763381441082,-1392.40577823,0.00016438,2]
[394210309,1763381441091,-500.0,0.00016438,2]
[394210310,1763381441100,-500.0,0.00016438,2]
[394210311,1763381441110,-1392.40577823,0.00016438,2]
[394210312,1763381441119,-500.0,0.00016438,2]
[394210313,1763381441129,-1392.40577823,0.00016438,2]
[394210314,1763381441138,-500.0,0.00016438,2]
[394210315,1763381441149,-1392.40577823,0.00016438,2]
[394210316,1763381441159,-500.0,0.00016438,2]
[394210317,1763381441168,-500.0,0.00016438,2]
[394210318,1763381441178,-1392.40577823,0.00016438,2]
[394210319,1763381441187,-500.0,0.00016438,2]
[394210320,1763381441197,-1392.40577823,0.00016438,2]
[394210321,1763381441207,-1392.40577823,0.00016438,2]
[394210322,1763381441216,-500.0,0.00016438,2]
[394210323,1763381441225,-1392.40577823,0.00016438,2]
[394210324,1763381441234,-1392.40577823,0.00016438,2]
[394210325,1763381441244,-500.0,0.00016438,2]
[394210326,1763381441254,-1392.40577823,0.00016438,2]
[394210327,1763381441263,-500.0,0.00016438,2]
[394210328,1763381441272,-1392.40577823,0.00016438,2]
[394210329,1763381441282,-1392.40577823,0.00016438,2]
[394210330,1763381441292,-1392.40577823,0.00016438,2]
[394210331,1763381441301,-1392.40577823,0.00016438,2]
[394210332,1763381441311,-1392.40577823,0.00016438,2]
[394210333,1763381441320,-1392.40577823,0.00016438,2]
[394210334,1763381441329,-1392.40577823,0.00016438,2]
[394210335,1763381441338,-1392.40577823,0.00016438,2]
[394210336,1763381441348,-1392.40577823,0.00016438,2]
[394210337,1763381441357,-1392.40577823,0.00016438,2]
[394210338,1763381441437,-1392.40577823,0.00016438,2]
[394210339,1763381441447,-1392.40577823,0.00016438,2]
[394210340,1763381441457,-1392.40577823,0.00016438,2]
[394210341,1763381441467,-1392.40577823,0.00016438,2]
[394210342,1763381441477,-1392.40577823,0.00016438,2]
[394210343,1763381441491,-1392.40577823,0.00016438,2]
[394210344,1763381441501,-1392.40577823,0.00016438,2]
[394210345,1763381441510,-1392.40577823,0.00016438,2]
[394210346,1763381441520,-1392.40577823,0.00016438,2]
[394210347,1763381441530,-1392.40577823,0.00016438,2]
[394210348,1763381441541,-1392.40577823,0.00016438,2]
[394210349,1763381441551,-1392.40577823,0.00016438,2]
[394210350,1763381441568,-1392.40577823,0.00016438,2]
[394210351,1763381441578,-1392.40577823,0.00016438,2]
[394210352,1763381441587,-1392.40577823,0.00016438,2]
[394210353,1763381441597,-1392.40577823,0.00016438,2]
[394210354,1763381441606,-639.2957628,0.00016438,2]
[394210355,1763381441616,-639.2957628,0.00016438,2]
[394210356,1763381441625,-639.2957628,0.00016438,2]
[394210357,1763381441636,-639.2957628,0.00016438,2]
[394210358,1763381441646,-639.2957628,0.00016438,2]
[394210359,1763381441655,-639.2957628,0.00016438,2]
[394210360,1763381441666,-639.2957628,0.00016438,2]
[394210361,1763381441676,-500.0,0.00016438,2]
[394210362,1763381441687,-1367.08930954,0.00016438,2]
[394210363,1763381441696,-500.0,0.00016438,2]
[394210364,1763381441706,-1367.08930954,0.00016438,2]
[394210365,1763381441715,-500.0,0.00016438,2]
[394210366,1763381441725,-500.0,0.00016438,2]
[394210367,1763381441734,-1367.08930954,0.00016438,2]
[394210368,1763381441743,-1367.08930954,0.00016438,2]
[394210369,1763381441752,-500.0,0.00016438,2]
[394210370,1763381441761,-500.0,0.00016438,2]
[394210371,1763381441771,-1367.08930954,0.00016438,2]
[394210372,1763381441780,-500.0,0.00016438,2]
[394210373,1763381441790,-1367.08930954,0.00016438,2]
[394210374,1763381441799,-1367.08930954,0.00016438,2]
[394210375,1763381441809,-500.0,0.00016438,2]
[394210376,1763381441819,-1367.08930954,0.00016438,2]
[394210377,1763381441828,-500.0,0.00016438,2]
[394210378,1763381441838,-1367.08930954,0.00016438,2]
[394210379,1763381441847,-500.0,0.00016438,2]
[394210380,1763381441856,-500.0,0.00016438,2]
[394210381,1763381441865,-1367.08930954,0.00016438,2]
[394210382,1763381441874,-500.0,0.00016438,2]
[394210383,1763381441883,-1367.08930954,0.00016438,2]
[394210384,1763381441893,-500.0,0.00016438,2]
[394210385,1763381441902,-1367.08930954,0.00016438,2]
[394210386,1763381441911,-226.90968601,0.00016438,2]
[394210387,1763381441920,-1367.08930954,0.00016438,2]
[394210388,1763381441931,-500.0,0.00016438,2]
[394210389,1763381441939,-1367.08930954,0.00016438,2]
[394210390,1763381441948,-1367.08930954,0.00016438,2]
[394210391,1763381441957,-500.0,0.00016438,2]
[394210392,1763381441966,-500.0,0.00016438,2]
[394210393,1763381441975,-1367.08930954,0.00016438,2]
[394210394,1763381441984,-500.0,0.00016438,2]
[394210395,1763381441993,-1367.08930954,0.00016438,2]
[394210396,1763381442002,-500.0,0.00016438,2]
[394210397,1763381442013,-500.0,0.00016438,2]
[394210398,1763381442023,-1367.08930954,0.00016438,2]
[394210399,1763381442032,-500.0,0.00016438,2]
[394210400,1763381442042,-1367.08930954,0.00016438,2]
[394210401,1763381442051,-500.0,0.00016438,2]
[394210402,1763381442061,-1367.08930954,0.00016438,2]
[394210403,1763381442071,-500.0,0.00016438,2]
[394210404,1763381442080,-1367.08930954,0.00016438,2]
[394210405,1763381442090,-500.0,0.00016438,2]
[394210406,1763381442100,-1367.08930954,0.00016438,2]
[394210407,1763381442110,-500.0,0.00016438,2]
[394210408,1763381442119,-1367.08930954,0.00016438,2]
[394210409,1763381442128,-500.0,0.00016438,2]
[394210410,1763381442138,-1367.08930954,0.00016438,2]
[394210411,1763381442147,-500.0,0.00016438,2]
[394210412,1763381442157,-500.0,0.00016438,2]
[394210413,1763381442166,-1367.08930954,0.00016438,2]
[394210414,1763381442176,-500.0,0.00016438,2]
[394210415,1763381442185,-500.0,0.00016438,2]
[394210416,1763381442195,-1367.08930954,0.00016438,2]
[394210417,1763381442204,-500.0,0.00016438,2]
[394210418,1763381442213,-500.0,0.00016438,2]
[394210419,1763381442223,-1367.08930954,0.00016438,2]
[394210420,1763381442232,-1367.08930954,0.00016438,2]
[394210422,1763381442241,-1367.08930954,0.00016438,2]
[394210423,1763381442249,-500.0,0.00016438,2]
[394210424,1763381442258,-1367.08930955,0.00016438,2]
[394210425,1763381442267,-1367.08930955,0.00016438,2]
[394210426,1763381442277,-1367.08930955,0.00016438,2]
[394210428,1763381442286,-1367.08930955,0.00016438,2]
[394210430,1763381442295,-185.90415884,0.00016464,2]
[394210431,1763381442304,-1500.0,0.00016468,2]
[394210432,1763381442314,-500.0,0.0001647,2]
[394210433,1763381442323,-501.72444069,0.00016473,2]
[394210434,1763381442333,-162.71889815,0.00016473,2]
[394210435,1763381442343,-160.0,0.00016473,2]
[394210436,1763381442352,-9684.85200953,0.00016519,2]
[394210438,1763381442361,-855.51592409,0.00016564,2]
[394210439,1763381442370,-161.9324311,0.0001669,2]
[394210440,1763381442379,-500.0,0.00016744,2]
[394210441,1763381442389,-1004.37558909,0.00016768,2]
[394210442,1763381442400,-504.70574074,0.00016768,2]
[394210443,1763381442413,-541.04800509,0.00016768,2]
[394210444,1763381442422,-1500.0,0.00016768,2]
[394210445,1763381442432,-1135.24857012,0.00016795,2]
[394210446,1763381442441,-2000.0,0.00017016,2]
[394210447,1763381442451,-500.0,0.00017018,2]
[394210448,1763381442460,-260.0,0.00017021,2]
[394210449,1763381442470,-9684.85200953,0.00017117,2]
[394210450,1763381442480,-587.0,0.0001712,2]
[394210451,1763381442490,-2351.0,0.00017127,2]
[394210452,1763381442499,-322.0,0.00017134,2]
[394210453,1763381442509,-2351.0,0.00017269,2]
[394210454,1763381442518,-1135.24857012,0.00017274,2]
[394210455,1763381442527,-684.9700106,0.00017289,2]
[394210456,1763381442536,-49305.5856675,0.00017289,2]
[394210457,1763381442545,-500.0,0.00017292,2]
[394210458,1763381442555,-2000.0,0.00017316,2]
[394210459,1763381442564,-393.0,0.00017323,2]
[394210460,1763381442573,-450.0,0.00017511,2]
[394210461,1763381442583,-431.38695596,0.00017564,2]
[394210462,1763381442592,-500.0,0.00017565,2]
[394210463,1763381442601,-360.0,0.00017569,2]
[394210464,1763381442614,-151.0,0.000177,2]
[394210465,1763381442625,-9684.85200953,0.00017714,2]
[394210466,1763381442634,-864.0,0.00017748,2]
[394210468,1763381442645,-1135.24857012,0.00017754,2]
[394210470,1763381442654,-500.0,0.00017839,2]
[394210472,1763381442663,-603.76194416,0.00017862,2]
[394210475,1763381442674,-2500.0,0.00017864,2]
[394210477,1763381442683,-268.95956833,0.00017923,2]
[394210478,1763381442694,-151.0,0.00018,2]
[394210479,1763381442703,-395.03358643,0.00018113,2]
[394210480,1763381442713,-460.0,0.00018117,2]
[394210481,1763381442722,-438.00505865,0.00018151,2]
[394210482,1763381442731,-1135.24857012,0.00018234,2]
[394210484,1763381442740,-9684.85200953,0.00018312,2]
[394210487,1763381442749,-273.94458724,0.00018387,2]
[394210489,1763381442758,-3000.0,0.00018412,2]
[394210490,1763381442767,-404.51853859,0.0001842,2]
[394210491,1763381442776,-560.0,0.00018665,2]
[394210492,1763381442786,-1135.24857012,0.00018713,2]
[394210493,1763381442796,-823.0,0.00018751,2]
[394210494,1763381442806,-495.0,0.00018759,2]
[394210495,1763381442878,-684.9700106,0.00018885,2]
[394210496,1763381442888,-49305.5856675,0.00018885,2]
[394210497,1763381442899,-151.0,0.00018885,2]
[394210498,1763381442909,-151.0,0.00018885,2]
[394210499,1763381442919,-151.0,0.00018885,2]
[394210500,1763381442929,-151.0,0.00018885,2]
[394210501,1763381442938,-477.42487773,0.0001896,2]
[394210502,1763381442947,-1684.0,0.00018996,2]
[394210503,1763381442957,-6032.79819892,0.00019146,2]
[394210504,1763381442967,-1136.38381869,0.00019193,2]
[394210505,1763381442976,-660.0,0.00019213,2]
[394210506,1763381442986,-151.0,0.00019348,2]
[394210507,1763381442995,-151.0,0.00019348,2]
[394210508,1763381443005,-165.74880417,0.00019348,2]
[394210509,1763381443014,-1000.0,0.00019348,2]
[394210510,1763381443023,-4593.02845099,0.00019348,2]
[394210511,1763381443032,-1000.0,0.00019348,2]
[394210512,1763381443042,-1000.0,0.00019348,2]
[394210513,1763381443051,-1000.0,0.00019348,2]
[394210514,1763381443060,-1000.0,0.00019348,2]
[394210515,1763381443070,-1000.0,0.00019348,2]
[394210516,1763381443079,-1000.0,0.00019348,2]
[394210517,1763381443088,-1000.0,0.00019348,2]
[394210518,1763381443097,-1000.0,0.00019348,2]
[394210519,1763381443107,-1000.0,0.00019348,2]
[394210520,1763381443116,-845.54684014,0.00019348,2]
[394210521,1763381443125,-500.0,0.00019348,2]
[394210522,1763381443134,-500.0,0.00019348,2]
[394210523,1763381443146,-500.0,0.00019348,2]
[394210524,1763381443157,-500.0,0.00019348,2]
[394210525,1763381443166,-4762.97050368,0.00019403,2]
[394210526,1763381443176,-4939.20041232,0.00019458,2]
[394210527,1763381443185,-5121.95082757,0.00019513,2]
[394210528,1763381443195,-1086.77149948,0.00019515,2]
[394210529,1763381443204,-1000.0,0.00019523,2]
[394210530,1763381443213,-5311.46300819,0.00019568,2]
[394210531,1763381443223,-788.40910558,0.00019608,2]
[394210532,1763381443232,-5507.9871395,0.00019623,2]
[394210533,1763381443241,-1387.68437399,0.00019678,2]
[394210534,1763381443250,-760.0,0.00019761,2]
[394210535,1763381443259,-304.55715825,0.00019923,2]
[394210536,1763381443268,-240.0,0.0002,2]
[394210537,1763381443277,-1152.0,0.0002,2]
[394210538,1763381443287,-2000.0,0.0002,7]
[394210539,1763381443296,-159.10902999,0.00020122,5]
[394210540,1763381443305,-728.13336946,0.00020131,2]
[394210541,1763381443314,-702.03337,0.00020187,2]
[394210542,1763381443323,-1401.66726296,0.000202,2]
[394210543,1763381443332,-1926.93559706,0.000202,2]
[394210544,1763381443341,-225.03052187,0.00020207,2]
[394210545,1763381443350,-860.0,0.00020309,2]
[394210546,1763381443360,-493.10025703,0.00020315,2]
[394210547,1763381443369,-640.97409484,0.00020474,2]
[394210548,1763381443379,-1152.0,0.00020537,2]
[394210549,1763381443389,-609.247011,0.00020548,2]
[394210550,1763381443400,-1000.0,0.000206,2]
[394210551,1763381443414,-1000.0,0.000206,2]
[394210552,1763381443423,-1000.0,0.000206,2]
[394210553,1763381443433,-1000.0,0.000206,2]
[394210554,1763381443443,-1000.0,0.000206,2]
[394210555,1763381443454,-960.0,0.00020856,2]
[394210556,1763381443464,-168.91552617,0.00021054,5]
[394210557,1763381443473,-1060.0,0.00021404,2]
[394210558,1763381443484,-1000.0,0.00021475,20]
[394210559,1763381443493,-244.0,0.00021475,20]
[394210560,1763381443503,-1358.82964339,0.00021686,5]
[394210561,1763381443512,-820.02481944,0.00021736,5]
[394210562,1763381443522,-2000.0,0.00021765,7]
[394210563,1763381443532,-500.0,0.00021917,2]
[394210564,1763381443541,-151.0,0.00021918,7]
[394210565,1763381443551,-151.0,0.00021918,7]
[394210566,1763381443560,-151.0,0.00021918,7]
[394210567,1763381443570,-200.802667,0.00021918,7]
[394210568,1763381443579,-150.0,0.00021918,2]
[394210569,1763381443589,-300.0,0.00021918,2]
[394210570,1763381443598,-340.15474818,0.00021923,2]
[394210571,1763381443607,-1160.0,0.00021952,2]
[394210572,1763381443617,-525.41,0.00022,7]
[394210573,1763381443627,-28260.27,0.00022,7]
[394210574,1763381443637,-400.67432439,0.00022,7]
[394210575,1763381443648,-1153.75337071,0.00022373,2]
[394210576,1763381443658,-417.92,0.000224,14]
[394210577,1763381443667,-300.0,0.00022466,2]
[394210578,1763381443676,-1613.0,0.00022493,2]
[394210579,1763381443685,-965.19814475,0.000225,2]
[394210580,1763381443694,-405.05493936,0.00022706,2]
[394210581,1763381443703,-701.53166973,0.0002274,2]
[394210582,1763381443712,-500.0,0.00023013,2]
[394210583,1763381443721,-450.0,0.00023014,2]
[394210584,1763381443730,-2000.0,0.00023529,7]
[394210585,1763381443739,-1000.0,0.00023622,20]
[394210586,1763381443748,-492.0,0.00023622,20]
[394210587,1763381443758,-375.75233811,0.00023923,2]
[394210588,1763381443767,-6032.79819892,0.00024105,2]
[394210589,1763381443777,-500.0,0.00024109,2]
[394210590,1763381443786,-168.0,0.00024125,2]
[394210591,1763381443796,-168.0,0.00024144,2]
[394210592,1763381443807,-168.0,0.00024239,2]
[394210593,1763381443816,-168.0,0.00024488,2]
[394210594,1763381443825,-168.0,0.00024572,2]
[394210595,1763381443834,-12962.04999538,0.000246,2]
[394210596,1763381443843,-160.0,0.00024632,2]
[394210597,1763381443852,-160.0,0.00024632,2]
[394210598,1763381443861,-400.67432439,0.00024632,2]
[394210599,1763381443871,-1949.0,0.00024635,2]
[394210600,1763381443881,-380.0,0.00024658,2]
[394210601,1763381443890,-28260.27,0.000247,7]
[394210602,1763381443901,-400.67432439,0.000247,7]
[394210603,1763381443910,-348.067304,0.000247,2]
[394210604,1763381443920,-348.067304,0.00024725,2]
[394210605,1763381443929,-348.067304,0.0002475,2]
[394210606,1763381443938,-168.0,0.0002477,2]
[394210607,1763381443947,-348.067304,0.00024775,2]
[394210608,1763381443957,-151.0,0.000248,7]
[394210609,1763381443967,-151.0,0.000248,7]
[394210610,1763381443976,-525.41,0.000248,7]
[394210611,1763381443986,-151.0,0.000248,7]
[394210612,1763381443995,-151.0,0.000248,7]
[394210613,1763381444005,-186.664075,0.000248,2]
[394210614,1763381444014,-348.067304,0.000248,2]
[394210615,1763381444024,-151.0,0.000248,7]
[394210616,1763381444034,-151.0,0.000248,7]
[394210617,1763381444043,-2315.228455,0.000248,7]
[394210618,1763381444053,-2315.228455,0.000248,7]
[394210619,1763381444063,-2315.228455,0.000248,7]
[394210620,1763381444072,-2315.228455,0.000248,7]
[394210621,1763381444082,-345.07192,0.000248,7]
[394210622,1763381444091,-345.07192,0.000248,7]
[394210623,1763381444101,-345.07192,0.000248,7]
[394210624,1763381444112,-345.07192,0.000248,7]
[394210625,1763381444122,-560.422676,0.000248,2]
[394210626,1763381444132,-560.422676,0.000248,2]
[394210627,1763381444206,-560.422676,0.000248,2]
[394210628,1763381444216,-560.422676,0.000248,2]
[394210629,1763381444226,-159.828821,0.000248,7]
[394210630,1763381444235,-159.828821,0.000248,7]
[394210631,1763381444244,-159.828821,0.000248,7]
[394210632,1763381444254,-159.828821,0.000248,7]
[394210633,1763381444263,-151.0,0.000248,7]
[394210634,1763381444274,-151.0,0.000248,7]
[394210635,1763381444283,-151.0,0.000248,7]
[394210636,1763381444292,-251.997791,0.000248,7]
[394210637,1763381444302,-251.997791,0.000248,7]
[394210638,1763381444311,-251.997791,0.000248,7]
[394210639,1763381444321,-251.997791,0.000248,7]
[394210640,1763381444331,-151.0,0.000248,7]
[394210641,1763381444341,-151.0,0.000248,7]
[394210642,1763381444350,-160.859447,0.000248,7]
[394210643,1763381444360,-158.44,0.00024873,8]
[394210644,1763381444370,-203.21851301,0.00024899,2]
[394210645,1763381444380,-162.80568,0.000249,7]
[394210646,1763381444389,-151.0,0.000249,7]
[394210647,1763381444401,-151.0,0.000249,7]
[394210648,1763381444411,-151.0,0.000249,7]
[394210649,1763381444421,-151.0,0.000249,7]
[394210650,1763381444431,-151.0,0.000249,7]
[394210651,1763381444441,-151.0,0.000249,7]
[394210652,1763381444452,-570.603194,0.000249,7]
[394210653,1763381444461,-570.603194,0.000249,7]
[394210654,1763381444471,-570.603194,0.000249,7]
[394210655,1763381444483,-570.603194,0.000249,7]
[394210656,1763381444493,-151.0,0.000249,7]
[394210657,1763381444503,-151.0,0.000249,7]
[394210658,1763381444512,-151.0,0.000249,7]
[394210659,1763381444522,-151.0,0.000249,7]
[394210660,1763381444532,-151.0,0.000249,7]
[394210661,1763381444541,-2315.228455,0.000249,7]
[394210662,1763381444551,-2315.228455,0.000249,7]
[394210663,1763381444560,-2315.228455,0.000249,7]
[394210664,1763381444570,-2315.228455,0.000249,7]
[394210665,1763381444579,-345.07192,0.000249,7]
[394210666,1763381444589,-345.07192,0.000249,7]
[394210667,1763381444598,-345.07192,0.000249,7]
[394210668,1763381444608,-345.07192,0.000249,7]
[394210669,1763381444618,-560.422676,0.000249,2]
[394210670,1763381444627,-560.422676,0.000249,2]
[394210671,1763381444637,-560.422676,0.000249,2]
[394210672,1763381444648,-560.422676,0.000249,2]
[394210673,1763381444658,-159.828821,0.000249,7]
[394210674,1763381444668,-159.828821,0.000249,7]
[394210675,1763381444678,-159.828821,0.000249,7]
[394210676,1763381444687,-159.828821,0.000249,7]
[394210677,1763381444698,-151.0,0.000249,7]
[394210678,1763381444707,-151.0,0.000249,7]
[394210679,1763381444717,-151.0,0.000249,7]
[394210680,1763381444727,-251.997791,0.000249,7]
[394210681,1763381444737,-251.997791,0.000249,7]
[394210682,1763381444746,-251.997791,0.000249,7]
[394210683,1763381444755,-251.997791,0.000249,7]
[394210684,1763381444765,-151.0,0.000249,7]
[394210685,1763381444775,-151.0,0.000249,7]
[394210686,1763381444785,-673924.838199,0.000249,2]
[394210687,1763381444795,-151.0,0.000249,7]
[394210688,1763381444804,-151.0,0.000249,7]
[394210689,1763381444814,-151.0,0.000249,7]
[394210690,1763381444823,-151.0,0.000249,7]
[394210691,1763381444833,-168.0,0.00025067,2]
[394210692,1763381444843,-168.0,0.00025191,2]
[394210693,1763381444853,-500.0,0.00025205,2]
[394210694,1763381444863,-276.11155644,0.00025294,7]
[394210695,1763381444951,-500.0,0.00019348,2]
[394210696,1763381444962,-500.0,0.00019348,2]
[394210697,1763381444971,-500.0,0.00019348,2]
[394210698,1763381444982,-1723.88844356,0.00025294,7]
[394210699,1763381444992,-205.20856145,0.00025752,2]
[394210700,1763381445002,-256.51070181,0.00025752,2]
[394210701,1763381445012,-168.0,0.00025804,2]
[394210702,1763381445021,-168.0,0.00025814,2]
[394210703,1763381445032,-205.20856145,0.00025863,9]
[394210704,1763381445042,-168.0,0.00025866,2]
[394210705,1763381445052,-168.0,0.00025904,2]
[394210706,1763381445061,-411.34992803,0.00025923,2]
[394210707,1763381445071,-168.0,0.00025933,2]
[394210708,1763381445080,-205.20856145,0.00025975,17]
[394210709,1763381445090,-256.51070181,0.00025975,17]
[394210710,1763381445099,-168.0,0.00025981,2]
[394210711,1763381445109,-1000.0,0.00025985,20]
[394210712,1763381445119,-791.0,0.00025985,20]
[394210713,1763381445128,-674.98644257,0.00026013,5]
[394210714,1763381445138,-205.20856145,0.00026086,25]